[Event "FRA-ch Teams Top 16-Haute 2022"]
[Site "Chartres"]
[Date "2022.06.16"]
[Round "8.10"]
[White "Solodovnichenko, Yuri"]
[Black "Edouard, Romain"]
[Result "1/2-1/2"]
[ECO "C15"]
[WhiteElo "2499"]
[BlackElo "2575"]
[Annotator "TA"]
[PlyCount "42"]
[EventDate "2022.06.16"]
[EventType "team-tourn"]
[EventCountry "FRA"]
[SourceTitle "playchess.com"]
[Source "ChessBase"]
[SourceQuality "1"]
[TimeControl "40/5400+30:1800+30"]

{[%evp 11,29,9,15,14,25,25,18,29,29,27,52,60,50,51,33,33,54,39,46,41]} 1. e4 {[%emt 0:00:01]} e6 {[%emt 0:02:49]} 2. d4 {[%emt 0:00:05]} d5 {[%emt 0:00:02]} 3. Nc3 {[%emt 0:00:04]} Bb4 {[%emt 0:00:02]} 4. Nge2 {[%emt 0:00:39]} Nc6 {[%emt 0:00:10]} 5. a3 {[%emt 0:00:06]} Ba5 {[%emt 0:00:03]} 6. b4 {[%emt 0:00:50]} Bb6 {[%emt 0:00:03]} 7. Bb2 {[%emt 0:00:04] C15: French: 3 Nc3 Bb4: Unusual White 4th moves.} Nge7 {[%emt 0:00:05]} 8. g3 {[%emt 0:04:22]} e5 {[%emt 0:00:14]} 9. dxe5 {[%emt 0:03:27] The position is equal.} Nxe5 {[%emt 0:00:03][%cal Re5f3] [#]} 10. Nf4 {[%emt 0:18:41][%cal Rc3d5]} Bg4 {[%emt 0:00:46]} 11. Be2 {[%emt 0:00:08] Prevents Nf3+. White is slightly better.} Bxe2 {[%emt 0:00:03]} 12. Qxe2 {[%emt 0:00:09][%cal Rc3d5]} Nc4 {[%emt 0:00:02]} 13. O-O-O {[%emt 0:04:21]} Nxb2 {[%emt 0:00:05]} 14. Kxb2 {[%emt 0:00:09][%cal Rc3d5]} d4 {[%emt 0:00:04]} 15. Ncd5 {[%emt 0:01:27] [#]  Weighted Error Value: White=0.00 (flawless) /Black=0.02 (flawless)} {Predecessor:} O-O $146 16. Qc4 Nc6 17. Nxb6 axb6 18. b5 Qe7 19. a4 Ne5 20. Qxd4 c6 21. Nd3 Nf3 {½-½ (35) Stoleriu,G (2362)-Marin,M (2555) Alba Iulia 2018} 1/2-1/2

[Event "FRA-ch Teams Top 16-Haute 2022"]
[Site "Chartres"]
[Date "2022.06.16"]
[Round "8.11"]
[White "Grandelius, Nils"]
[Black "Brunner, Nicolas"]
[Result "1-0"]
[ECO "E03"]
[WhiteElo "2635"]
[BlackElo "2454"]
[Annotator "TA"]
[PlyCount "59"]
[EventDate "2022.06.16"]
[EventType "team-tourn"]
[EventCountry "FRA"]
[SourceTitle "playchess.com"]
[Source "ChessBase"]
[SourceQuality "1"]
[TimeControl "40/5400+30:1800+30"]

{[%evp 11,59,0,23,15,28,11,18,5,19,20,31,22,22,17,31,29,22,8,60,52,64,70,62,12,26,18,13,11,49,49,59,22,54,51,37,29,53,53,54,44,52,43,41,49,56,53,49,52,399,388]} 1. c4 {[%emt 0:01:41] Ganguly,Surya} e6 {[%emt 0:00:22]} 2. g3 {[%emt 0:01:26]} d5 {[%emt 0:00:19]} 3. Bg2 {[%emt 0:00:22]} Nf6 {[%emt 0:00:08]} 4. d4 {[%emt 0:04:13]} dxc4 {[%emt 0:00:15]} 5. Qa4+ {[%emt 0:00:32]} Nbd7 {[%emt 0:01:33]} 6. Qxc4 {[%emt 0:01:19]} a6 {[%emt 0:00:28]} 7. Be3 {[%emt 0:00:41] is cutting edge theory. E03: Open Catalan: 5 Qa4+ Nbd7 6 Qxc4.} Bd6 {[%emt 0:03:59]} 8. Nh3 {[%emt 0:08:49]} O-O {[%emt 0:00:59][%cal Of6d5]} 9. O-O {[%emt 0:00:05] The position is equal.} e5 {[%emt 0:01:07]} 10. dxe5 {[%emt 0:08:16]} Nxe5 {[%emt 0:00:26]} 11. Qc2 {[%emt 0:00:05]} Qe7 {[%emt 0:05:10]} 12. Nc3 {[%emt 0:01:24]} h6 {[%emt 0:10:08] [#]} 13. Nf4 $146 {[%emt 0:09:41]} ({Predecessor:} 13. Rad1 Re8 14. Nf4 c6 15. Bd4 g5 16. Nd3 Nxd3 17. Rxd3 Be5 18. Qd2 Bf5 19. e4 {1-0 (26) Caruana,F (2827)-Anand,V (2771) Batumi 2018 CBM 187 [Ganguly,Surya]}) 13... c6 $1 {[%emt 0:00:44] Against Ncd5} 14. Rad1 {[%emt 0:02:16]} Be6 {[%emt 0:04:51]} (14... g5 $11) 15. Bd4 {[%emt 0:12:21]} Rad8 {[%emt 0:15:09]} 16. Nxe6 {[%emt 0:05:13]} Qxe6 {[%emt 0:00:20]} 17. e4 {[%emt 0:06:13]} (17. Kh1 $14) 17... c5 $11 {[%emt 0:09:03]} 18. Be3 {[%emt 0:00:09] Hoping for f4.} c4 {[%emt 0:02:06]} 19. Bb6 {[%emt 0:15:03]} Rd7 {[%emt 0:05:16]} 20. Nd5 {[%emt 0:02:26]} Nxd5 {[%emt 0:07:46]} 21. Rxd5 {[%emt 0:01:48]} Be7 {[%emt 0:01:26] [#] And now ...Rxd5 would win.} 22. Bd4 {[%emt 0:02:29]} Bf6 {[%emt 0:04:24]} 23. Rd1 {[%emt 0:02:51] f4 is the strong threat.} Rxd5 {[%emt 0:01:46]} 24. exd5 {[%emt 0:00:02]} Qd6 {[%emt 0:00:18]} 25. Bxe5 {[%emt 0:01:47]} Bxe5 {[%emt 0:00:58]} 26. Qxc4 {[%emt 0:00:26]} Bxb2 {[%emt 0:01:12]} 27. Qb3 $36 {[%emt 0:00:52][%csl LRb2,LRb7][%mdl 2048] White is more active.} Be5 {[%emt 0:01:10]} 28. Qxb7 {[%emt 0:01:07]} Rb8 {[%emt 0:00:51]} 29. Qc6 {[%emt 0:00:03]} Rb2 $2 {[%emt 0:04:25][%mdl 8192] [#]} (29... g6 $14) 30. Qe8+ {[%emt 0:01:11] Weighted Error Value: White=0.05 (flawless) /Black=0.37} 1-0

[Event "FRA-ch Teams Top 16-Haute 2022"]
[Site "Chartres"]
[Date "2022.06.16"]
[Round "8.12"]
[White "Hamitevici, Vladimir"]
[Black "Fedorchuk, Sergey A."]
[Result "1/2-1/2"]
[ECO "A28"]
[WhiteElo "2482"]
[BlackElo "2606"]
[Annotator "TA"]
[PlyCount "45"]
[EventDate "2022.06.16"]
[EventType "team-tourn"]
[EventCountry "FRA"]
[SourceTitle "playchess.com"]
[Source "ChessBase"]
[SourceQuality "1"]
[TimeControl "40/5400+30:1800+30"]

{[%evp 12,32,11,14,11,16,11,13,14,20,12,8,23,8,12,0,0,0,0,0,0,0,0]} 1. c4 {[%emt 0:00:39]} e5 {[%emt 0:00:43]} 2. Nc3 {[%emt 0:01:12]} Nc6 {[%emt 0:03:00]} 3. Nf3 {[%emt 0:01:33]} Nf6 {[%emt 0:01:03]} 4. e3 {[%emt 0:01:15]} Bb4 {[%emt 0:05:41]} 5. Qc2 {[%emt 0:01:32]} Bxc3 {[%emt 0:00:53]} 6. Qxc3 {[%emt 0:01:58]} Qe7 {[%emt 0:00:11]} 7. Be2 {[%emt 0:05:56] 7.d4 is setting a new trend.} d5 {[%emt 0:08:47] A28: English Opening: Four Knights Variation.} 8. d4 {[%emt 0:01:31]} exd4 {[%emt 0:10:00]} 9. Nxd4 {[%emt 0:00:08]} Nxd4 {[%emt 0:00:18]} 10. Qxd4 {[%emt 0:00:07]} c5 {[%emt 0:00:12]} 11. Qf4 {[%emt 0:02:23]} dxc4 {[%emt 0:07:38]} 12. Bxc4 {[%emt 0:00:35]} Be6 {[%emt 0:00:16] The position is equal.} 13. b3 {[%emt 0:04:28]} Bxc4 {[%emt 0:02:44]} 14. Qxc4 {[%emt 1:14:13]} O-O {[%emt 0:03:04]} 15. Bb2 {[%emt 0:00:30]} Rfd8 {[%emt 0:02:08]} 16. O-O {[%emt 0:00:00]} b6 {[%emt 0:01:26] [#] Not much happened in this game.  Weighted Error Value: White=0.02 (flawless) /Black=0.00 (flawless)} {Predecessor:} 17. Rad1 $146 Rxd1 18. Rxd1 Rd8 19. Qe2 h6 20. h3 Rxd1+ 21. Qxd1 Qd7 22. Qxd7 Nxd7 23. Kf1 {1-0 (32) Bluebaum,M (2643)-Santos Ruiz,M (2560) chess24.com INT 2019} 1/2-1/2

[Event "FRA-ch Teams Top 16-Haute 2022"]
[Site "Chartres"]
[Date "2022.06.16"]
[Round "8.13"]
[White "Jones, Gawain C B"]
[Black "Savina, Anastasia"]
[Result "1-0"]
[ECO "B06"]
[WhiteElo "2669"]
[BlackElo "2348"]
[Annotator "TA"]
[PlyCount "51"]
[EventDate "2022.06.16"]
[EventType "team-tourn"]
[EventCountry "FRA"]
[SourceTitle "playchess.com"]
[Source "ChessBase"]
[SourceQuality "1"]
[TimeControl "40/5400+30:1800+30"]

{[%evp 11,51,35,49,56,91,80,80,80,90,79,91,86,174,158,156,95,93,99,99,70,66,57,69,60,60,42,37,44,95,59,97,94,155,146,159,149,433,413,405,369,734,648]} 1. d4 {[%emt 0:00:52]} g6 {[%emt 0:01:32]} 2. e4 {[%emt 0:00:47]} Bg7 {[%emt 0:00:20]} 3. Nc3 {[%emt 0:00:08]} d6 {[%emt 0:00:50]} 4. Be3 {[%emt 0:00:09]} a6 {[%emt 0:00:59]} 5. Qd2 {[%emt 0:00:39]} b5 {[%emt 0:00:24]} 6. O-O-O {[%emt 0:01:08]} Nd7 {[%emt 0:08:31]} 7. h4 {[%emt 0:01:08][%cal Bh2h4,Bh4h5][%mdl 32] B06: Modern Defence.} Ngf6 {[%emt 0:01:39] [#]} 8. e5 $146 {[%emt 0:06:09]} ({Predecessor:} 8. f3 h6 9. g4 Nb6 10. Nh3 b4 11. Nb1 a5 12. Nf4 Nfd7 13. e5 e6 14. exd6 Bb7 15. d5 Qf6 16. c3 e5 17. dxc7 Qd6 18. Bb5 O-O 19. Nxg6 fxg6 {0-1 (19) Nasuta,G (2521)-Gareyev,T (2573) Warsaw 2021}) 8... Ng4 {[%emt 0:04:41] [#]} 9. h5 $1 {[%emt 0:09:27] White is better.} dxe5 {[%emt 0:18:52]} 10. dxe5 {[%emt 0:01:25]} Ngxe5 {[%emt 0:01:37]} 11. Bh6 {[%emt 0:05:19]} Bf8 {[%emt 0:09:20]} (11... Bxh6 $16 {was called for.} 12. Qxh6 e6) 12. Bf4 $18 {[%emt 0:06:59] Strongly threatening Bxe5.} Bg7 {[%emt 0:05:32]} 13. Qe3 {[%emt 0:24:23]} (13. Nf3 $142 Nxf3 14. gxf3) 13... Bb7 $16 {[%emt 0:07:19]} 14. Bxe5 {[%emt 0:02:49]} Bxe5 {[%emt 0:00:11] [#]} 15. Rxd7 $1 {[%emt 0:00:35]} Qxd7 {[%emt 0:00:10]} 16. Qxe5 {[%emt 0:00:06][%cal Re5h8]} O-O-O {[%emt 0:00:19] ( -> ...Qd2+)} 17. Bd3 {[%emt 0:03:47]} f6 {[%emt 0:08:46]} 18. Qe3 {[%emt 0:02:33]} Bxg2 {[%emt 0:03:16]} 19. Rh4 {[%emt 0:02:49][%cal Bh1h4,Bh4b4,Bb4b3][%mdl 32] aiming for f3.} (19. Rh2 Bb7 $11) 19... Bb7 {[%emt 0:04:34]} (19... g5 $14 20. Rb4 Qd6) 20. Nge2 {[%emt 0:02:49][%mdl 1024] White has strong compensation. White is more active.} ({And not} 20. hxg6 hxg6 21. Rxh8 Rxh8 $15) 20... e5 $1 {[%emt 0:04:28] [#]} 21. a4 $1 {[%emt 0:01:46][%cal Ra4b5]} ({Of course not} 21. hxg6 $6 hxg6 22. Rxh8 Rxh8 $15) 21... g5 {[%emt 0:10:06]} (21... c6 $142) 22. Rb4 {[%emt 0:02:20][%cal Ra4b5]} Qe7 {[%emt 0:01:47]} 23. Rb3 {[%emt 0:02:16]} c6 {[%emt 0:06:12][%mdl 8192]} (23... b4 $16 {might work better.}) 24. Qa7 $18 {[%emt 0:01:43]} Rxd3 {[%emt 0:00:33]} 25. cxd3 {[%emt 0:00:07][%cal Ra4b5]} b4 {[%emt 0:00:28]} (25... Qe6 26. Ne4 Qxb3 27. Nd6+ Kc7) 26. Ne4 {[%emt 0:00:45] Weighted Error Value: White=0.05 (flawless) /Black=0.36} 1-0

[Event "FRA-ch Teams Top 16-Haute 2022"]
[Site "Chartres"]
[Date "2022.06.16"]
[Round "8.14"]
[White "Nezar, Mustapha"]
[Black "Velten, Paul"]
[Result "0-1"]
[ECO "C54"]
[WhiteElo "2357"]
[BlackElo "2492"]
[Annotator "TA"]
[PlyCount "164"]
[EventDate "2022.06.16"]
[EventType "team-tourn"]
[EventCountry "FRA"]
[SourceTitle "playchess.com"]
[Source "ChessBase"]
[SourceQuality "1"]
[TimeControl "40/5400+30:1800+30"]

{[%evp 14,164,18,8,35,10,27,8,22,22,33,8,14,12,25,25,31,31,33,22,18,-26,-16,-29,-30,-27,-6,-15,22,18,24,14,41,0,7,-21,-43,-37,-5,-80,-56,-62,0,-56,-58,-197,-201,-557,-545,-528,-510,-510,-474,-473,-64,-59,-49,-58,-52,-52,-52,-52,-56,-56,-49,-57,0,-11,0,0,0,0,0,0,0,0,0,0,0,0,0,0,0,0,0,0,0,0,0,0,0,0,0,0,0,0,0,0,0,0,0,0,0,0,0,0,0,0,0,0,0,0,0,0,0,0,0,0,0,0,0,0,0,0,0,0,0,0,0,0,0,0,0,0,0,0,0,0,0,0,0,0,0,0,0,0,0,0,0,0,0,-29990,-29991]} 1. e4 {[%emt 0:03:29]} e5 {[%emt 0:00:57]} 2. Nf3 {[%emt 0:00:17]} Nc6 {[%emt 0:01:20]} 3. Bc4 {[%emt 0:00:14]} Bc5 {[%emt 0:01:18]} 4. O-O {[%emt 0:02:37]} Nf6 {[%emt 0:00:59]} 5. d3 {[%emt 0:01:14]} d6 {[%emt 0:01:46]} 6. c3 {[%emt 0:05:16]} Bb6 {[%emt 0:08:36]} 7. Nbd2 {[%emt 0:06:40][%cal Bb1d2,Bd2f1,Bf1g3][%mdl 32]} Ne7 {[%emt 0:03:58]} 8. Bb3 {[%emt 0:12:40]} c6 {[%emt 0:07:58][%cal Bc7c6,Bc6c5,Bc5c4][%mdl 32] C54: Giuoco Piano: 4 c3 Nf6, main lines with 5 d4 and 5 d3.} 9. Re1 {[%emt 0:07:14]} O-O {[%emt 0:04:21]} 10. Nf1 {[%emt 0:02:21]} h6 {[%emt 0:01:30] The position is equal.} 11. Ng3 {[%emt 0:04:10] [#]} Be6 $146 {[%emt 0:05:06]} ({Predecessor:} 11... Ng6 12. h3 Re8 13. d4 Be6 14. Bc2 Qd7 15. Be3 Rad8 16. Qe2 Qc8 17. a3 Nf4 {1-0 (26) Zhigalko,S (2594)-Strybuk,A (2294) Minsk 2019}) 12. Be3 {[%emt 0:02:35]} Bxe3 {[%emt 0:02:22]} 13. Rxe3 {[%emt 0:00:22]} c5 {[%emt 0:04:46]} 14. Bxe6 {[%emt 0:15:58]} fxe6 {[%emt 0:00:58]} 15. d4 {[%emt 0:04:39]} Qc7 {[%emt 0:05:41]} 16. dxe5 {[%emt 0:10:03]} dxe5 {[%emt 0:00:15]} 17. Rd3 {[%emt 0:00:05]} Ng6 {[%emt 0:00:19]} 18. Qa4 {[%emt 0:00:35]} c4 {[%emt 0:00:35]} 19. Rd2 {[%emt 0:00:07]} a6 {[%emt 0:01:14]} 20. Qb4 {[%emt 0:04:54]} Ne8 {[%emt 0:01:18][%cal Of8f3] Against Qd6} 21. Rad1 {[%emt 0:01:01]} Rf7 {[%emt 0:00:05] Inhibits Rd7.} 22. a4 {[%emt 0:00:59]} Kh7 {[%emt 0:03:02]} 23. Ne1 {[%emt 0:00:53]} Rb8 {[%emt 0:00:56]} 24. Nf1 {[%emt 0:01:03]} b5 {[%emt 0:00:17]} 25. axb5 {[%emt 0:00:17]} Rxb5 {[%emt 0:02:51]} 26. Qa3 {[%emt 0:00:58] [#]} (26. Qa4 $11) 26... Nf6 $1 $17 {[%emt 0:00:07][%cal Be8f6,Bf6e4,Be4f2][%mdl 32] Black is more active.} 27. Qxa6 {[%emt 0:02:54]} Rb6 {[%emt 0:00:05]} (27... Ra5 $1 $15 28. Qxe6 Nf4 29. Qf5+ g6 30. Qxf6 Ne2+ 31. Rxe2 Rxf6) 28. Qa8 {[%emt 0:00:28]} (28. Qa4 $1 $11) 28... Rb8 $15 {[%emt 0:00:32][%mdl 64] Deflection} 29. Qa6 {[%emt 0:00:25]} (29. Qa4 $15) 29... Nxe4 $19 {[%emt 0:00:09]} 30. Re2 {[%emt 0:00:32] [#]} (30. Ne3 Nxd2 31. Rxd2) 30... Nxf2 $1 {[%emt 0:08:35][%mdl 512]} 31. Rxf2 {[%emt 0:01:05]} Rxf2 {[%emt 0:00:08]} 32. Kxf2 {[%emt 0:00:12]} Qc5+ {[%emt 0:00:06]} 33. Kg3 {[%emt 0:01:29]} Rxb2 $2 {[%emt 0:02:51]} (33... Rf8 $19 {( -> ...Qf2+)} 34. Nf3 e4) 34. Rd2 $15 {[%emt 0:01:24] Inhibits Qf2+.} Rb1 {[%emt 0:00:18][%cal Bb2b1,Bb1c1,Bc1c3][%mdl 32]} 35. Re2 {[%emt 0:00:38]} Qg1 {[%emt 0:02:36]} 36. Qxc4 {[%emt 0:03:46][%cal Of1d2] Strongly threatening Nd2!} Qxf1 {[%emt 0:00:22]} 37. Qe4 {[%emt 0:01:37]} Rc1 {[%emt 0:01:55]} 38. Nf3 {[%emt 0:01:23]} Rxc3 {[%emt 0:00:54]} 39. h4 {[%emt 0:00:10] aiming for h5.} h5 {[%emt 0:04:22]} (39... Qc1 $15 40. Kh2 Rc4) 40. Kh2 {[%emt 0:01:49]} Rc1 {[%emt 0:03:27]} 41. Nxe5 {[%emt 0:31:28]} Qh1+ {[%emt 0:46:36]} 42. Kg3 {[%emt 0:00:10]} Rc3+ {[%emt 0:00:08]} 43. Nf3 $1 {[%emt 0:00:47]} Qc1 {[%emt 0:00:49]} 44. Kh2 {[%emt 0:00:00]} Qf4+ {[%emt 0:00:00]} 45. Qxf4 {[%emt 0:00:00]} Nxf4 $11 {[%emt 0:00:00][%mdl 4096] Endgame KRN-KRN} 46. Re4 {[%emt 0:00:00]} Nd5 {[%emt 0:00:00]} 47. Rxe6 {[%emt 0:00:00] White wants to mate with Ng5+.} Nf6 {[%emt 0:00:00]} 48. Kg3 {[%emt 0:00:00]} Ra3 {[%emt 0:00:00]} 49. Re5 {[%emt 0:00:00]} Ra4 {[%emt 0:00:00]} 50. Re6 {[%emt 0:00:00]} Kg8 {[%emt 0:00:00]} 51. Ng5 {[%emt 0:00:00]} Kf8 {[%emt 0:00:00]} 52. Re3 {[%emt 0:00:00]} Nd5 {[%emt 0:00:00]} 53. Rf3+ {[%emt 0:00:00]} Ke8 {[%emt 0:00:00]} 54. Rf5 {[%emt 0:00:00]} Nf6 {[%emt 0:00:00]} 55. Rf4 {[%emt 0:00:00]} Ra2 {[%emt 0:00:00]} 56. Rf3 {[%emt 0:00:00]} Ke7 {[%emt 0:00:00]} 57. Re3+ {[%emt 0:00:00]} Kf8 {[%emt 0:00:00]} 58. Rf3 {[%emt 0:00:00]} Kg8 {[%emt 0:00:00]} 59. Rd3 {[%emt 0:00:00] Threatening mate with Rd8+.} Ra8 {[%emt 0:00:00] Prevents Rd8+.} 60. Rb3 {[%emt 0:00:00]} Re8 {[%emt 0:00:00]} 61. Ra3 {[%emt 0:00:00]} Nd5 {[%emt 0:00:00]} 62. Ra5 {[%emt 0:00:00]} Nf6 {[%emt 0:00:00]} 63. Ra3 {[%emt 0:00:00]} Ng4 {[%emt 0:00:00]} 64. Rb3 {[%emt 0:00:00]} Ra8 {[%emt 0:00:00]} 65. Rc3 {[%emt 0:00:00]} Nh6 {[%emt 0:00:00]} 66. Rc5 {[%emt 0:00:00]} g6 {[%emt 0:00:00]} 67. Nf3 {[%emt 0:00:00]} Nf5+ {[%emt 0:00:00]} 68. Kh3 {[%emt 0:00:00]} Ra4 {[%emt 0:00:00]} 69. Rc7 {[%emt 0:00:00]} Rg4 {[%emt 0:00:00]} 70. Rb7 {[%emt 0:01:05]} Kf8 {[%emt 0:00:00]} 71. Ra7 {[%emt 0:00:39]} Ke8 {[%emt 0:00:00]} 72. Rb7 {[%emt 0:00:15]} Kd8 {[%emt 0:00:00]} 73. Rb8+ {[%emt 0:00:32]} Kc7 {[%emt 0:00:00]} 74. Re8 {[%emt 0:00:12]} Kd6 {[%emt 0:00:00]} 75. Re2 {[%emt 0:00:25]} Kc5 {[%emt 0:00:00]} 76. Rd2 {[%emt 0:00:35]} Kb4 {[%emt 0:00:00]} 77. Rc2 {[%emt 0:00:53]} Kb3 {[%emt 0:00:00]} 78. Rc6 {[%emt 0:00:41]} Kb2 {[%emt 0:00:00]} 79. Rc5 {[%emt 0:00:40]} Kb3 {[%emt 0:00:00]} 80. Rc6 {[%emt 0:00:37]} Kb4 {[%emt 0:00:00]} 81. Rc2 {[%emt 0:00:36]} Ne3 {[%emt 0:00:00]} 82. Re2 $2 {[%emt 0:00:40][%mdl 8192] [#]} (82. Ne5 $11) 82... Nf1 $1 {[%emt 0:00:00] Weighted Error Value: White=0.21 (precise) /Black=0.23 (precise)} 0-1

[Event "FRA-ch Teams Top 16-Haute 2022"]
[Site "Chartres"]
[Date "2022.06.16"]
[Round "8.15"]
[White "David, Alberto"]
[Black "Pourquet, Matthieu"]
[Result "1-0"]
[ECO "D31"]
[WhiteElo "2520"]
[BlackElo "2178"]
[Annotator "TA"]
[PlyCount "87"]
[EventDate "2022.06.16"]
[EventType "team-tourn"]
[EventCountry "FRA"]
[SourceTitle "playchess.com"]
[Source "ChessBase"]
[SourceQuality "1"]
[TimeControl "40/5400+30:1800+30"]

{[%evp 9,87,22,22,22,23,22,22,21,22,13,18,9,16,23,17,18,16,13,19,16,40,41,39,22,27,28,50,51,54,54,213,210,204,208,192,151,164,162,192,164,225,221,259,256,304,263,268,246,329,316,326,293,291,222,352,171,180,141,167,152,168,0,0,0,460,450,450,24,433,440,464,458,451,457,457,450,472,458,456,426]} 1. d4 {[%emt 0:00:06] Sadorra,Julio} d5 {[%emt 0:01:25]} 2. c4 {[%emt 0:00:09]} e6 {[%emt 0:00:06]} 3. Nc3 {[%emt 0:01:07]} a6 {[%emt 0:00:32]} 4. cxd5 {[%emt 0:00:44]} exd5 {[%emt 0:00:04]} 5. Bf4 {[%emt 0:03:38]} Nf6 {[%emt 0:02:02]} 6. e3 {[%emt 0:00:43] D31: Queen's Gambit Declined: Semi-Slav without ...Nf6 (+ Marshall Gambit and Noteboom) and Exchange Variation lines without ...Nf6.} Bd6 {[%emt 0:04:11]} 7. Bxd6 {[%emt 0:02:12]} Qxd6 {[%emt 0:00:04]} 8. Bd3 {[%emt 0:00:05] The position is equal.} O-O {[%emt 0:01:22]} 9. h3 {[%emt 0:00:12]} Re8 {[%emt 0:04:24]} 10. Nf3 {[%emt 0:05:19]} c6 {[%emt 0:04:13]} 11. Qc2 {[%emt 0:01:22]} Nbd7 {[%emt 0:00:17]} 12. O-O {[%emt 0:03:21]} Qe7 {[%emt 0:00:39] [#]} 13. Nd2 $146 {[%emt 0:16:11]} ({Predecessor:} 13. Rab1 Ne4 14. Na4 Nf8 15. b4 Ng6 16. Nc5 Nh4 17. Nxh4 Qxh4 18. Rfc1 Re7 19. Nxe4 dxe4 {1-0 (36) Eljanov,P (2720)-Lupulescu,C (2620) Heraklion 2017 CBM 182 [Sadorra,Julio]}) 13... Nb6 {[%emt 0:01:21]} 14. Rae1 {[%emt 0:07:57]} Be6 {[%emt 0:01:20]} 15. Nb3 {[%emt 0:00:36]} Rad8 {[%emt 0:05:30]} 16. f3 {[%emt 0:01:33]} g6 {[%emt 0:07:16]} 17. Qf2 {[%emt 0:03:15]} Nh5 {[%emt 0:04:19]} 18. Nc5 {[%emt 0:04:23]} Qc7 {[%emt 0:02:04]} 19. g4 {[%emt 0:03:04]} Ng3 $2 {[%emt 0:07:08]} ({Black should play} 19... Ng7 $14) 20. Qh2 $1 $18 {[%emt 0:01:06]} (20. Nxb7 Rc8 $11) 20... Rc8 {[%emt 0:09:26]} 21. Rf2 {[%emt 0:01:25] aiming for Rg2.} h5 {[%emt 0:00:34] [#]} 22. Nxb7 $1 {[%emt 0:00:59][%cal Og4h5][%mdl 512]} h4 {[%emt 0:01:45]} 23. Nc5 {[%emt 0:09:11]} (23. Bxa6 $6 Nd7 $14) 23... a5 {[%emt 0:00:56]} 24. Rc2 {[%emt 0:03:30]} f5 {[%emt 0:07:54]} (24... Qd6 $142 25. Ne2 Nd7) 25. Ne2 {[%emt 0:04:26]} Bf7 {[%emt 0:00:20]} 26. Qf2 {[%emt 0:00:17]} Nc4 {[%emt 0:01:18]} 27. Bxc4 {[%emt 0:00:38]} dxc4 {[%emt 0:00:04]} 28. Kg2 {[%emt 0:00:27]} fxg4 {[%emt 0:02:14]} 29. hxg4 {[%emt 0:01:12]} ({Weaker is} 29. Nxg3 hxg3 30. Qxg3 Qxg3+ 31. Kxg3 gxf3 32. Kxf3 Rcd8 $16) 29... Nxe2 {[%emt 0:00:10]} 30. Rcxe2 {[%emt 0:00:23]} ({Less strong is} 30. Qxh4 Nf4+ 31. exf4 Rxe1 32. Qxe1 Qxf4 $16) 30... g5 {[%emt 0:00:15]} 31. Kh3 {[%emt 0:07:53]} Rf8 {[%emt 0:04:30]} (31... Bg6 {was worth a try.} 32. f4 Bd3) 32. Rf1 {[%emt 0:02:42]} (32. f4 $142) 32... Rce8 {[%emt 0:00:24]} 33. Qh2 {[%emt 0:00:53]} Qe7 {[%emt 0:03:27]} 34. Qe5 {[%emt 0:03:40]} Qd8 {[%emt 0:03:53] [#]} 35. Nb7 $2 {[%emt 0:00:48]} (35. Qf5 $1 $18 {Hoping for Nd7.} Kg7 36. Qd7) 35... Qd5 $11 {[%emt 0:02:38]} 36. Qf5 {[%emt 0:05:00] Strongly threatening e4. Chess con chili.} Be6 $2 {[%emt 0:07:17][%mdl 8192]} (36... c3 $1 $11 37. Nxa5 (37. bxc3 Qxf5 38. gxf5 Bc4 $17) 37... Be6 38. Qg6+ Kh8 39. Qh6+ Kg8 40. Qg6+ Kh8 41. Qh6+ Kg8 42. Qg6+) 37. Qg6+ $18 {[%emt 0:00:15]} Kh8 {[%emt 0:00:04]} 38. Qh6+ {[%emt 0:02:14]} Kg8 {[%emt 0:00:05]} 39. e4 {[%emt 0:01:04] White is clearly winning.} Qxd4 {[%emt 0:08:45]} 40. Qxg5+ {[%emt 0:00:11]} Qg7 {[%emt 0:02:24] [#]} 41. Qxg7+ {[%emt 0:34:12]} Kxg7 {[%emt 0:30:05]} 42. Kxh4 {[%emt 0:00:10]} c3 {[%emt 0:00:21] Threatens to win with ...Bc4.} 43. b3 {[%emt 0:00:18] Against Bc4} Bc8 {[%emt 0:00:04]} 44. Nd6 {[%emt 0:00:44] Weighted Error Value: White=0.26 (precise) /Black=0.40} 1-0

[Event "FRA-ch Teams Top 16-Haute 2022"]
[Site "Chartres"]
[Date "2022.06.16"]
[Round "8.16"]
[White "Thomas, Anysia"]
[Black "Alexieva, Silvia"]
[Result "0-1"]
[ECO "D24"]
[WhiteElo "2126"]
[BlackElo "2219"]
[Annotator "NA RC"]
[PlyCount "62"]
[EventDate "2022.06.16"]
[EventType "team-tourn"]
[EventCountry "FRA"]
[SourceTitle "playchess.com"]
[Source "ChessBase"]
[SourceQuality "1"]
[TimeControl "40/5400+30:1800+30"]

1. d4 {[%emt 0:00:03]} d5 {[%emt 0:00:17]} 2. c4 {[%emt 0:00:11]} dxc4 {[%emt 0:00:08]} 3. Nf3 {[%emt 0:00:30]} Nf6 {[%emt 0:00:25]} 4. Nc3 {[%emt 0:01:06]} a6 {[%emt 0:00:36]} 5. e4 {[%emt 0:03:15]} b5 {[%emt 0:00:48]} 6. e5 {[%emt 0:00:10]} Nd5 {[%emt 0:00:16]} 7. a4 {[%emt 0:00:07]} e6 {[%emt 0:01:26]} 8. axb5 {[%emt 0:02:12]} Bb4 {[%emt 0:02:04]} 9. Bd2 {[%emt 0:03:41]} Nb6 {[%emt 0:04:32]} 10. bxa6 {[%emt 0:02:59]} Rxa6 {[%emt 0:07:53]} 11. Rxa6 {[%emt 0:22:43]} Bxa6 {[%emt 0:00:56]} 12. Be2 {[%emt 0:04:03]} Nc6 {[%emt 0:10:02]} 13. Ne4 {[%emt 0:10:00]} Be7 {[%emt 0:01:17]} 14. Bg5 {[%emt 0:06:04]} Bxg5 {[%emt 0:05:52]} 15. Nexg5 {[%emt 0:00:16]} Qd5 {[%emt 0:00:25]} 16. O-O {[%emt 0:03:03]} h6 {[%emt 0:03:08]} 17. Nh3 {[%emt 0:38:37]} g5 {[%emt 0:03:51]} 18. Nfxg5 {[%emt 0:00:00]} hxg5 {[%emt 0:01:21]} 19. Bf3 {[%emt 0:00:00]} Qd7 {[%emt 0:00:18]} 20. Nxg5 {[%emt 0:00:00]} Nxd4 {[%emt 0:06:05]} 21. Bh5 {[%emt 0:00:00]} c3 {[%emt 0:06:41]} 22. bxc3 {[%emt 0:00:00]} Bxf1 {[%emt 0:02:39]} 23. cxd4 {[%emt 0:00:00]} Bc4 {[%emt 0:01:53]} 24. Bxf7+ {[%emt 0:00:00]} Kd8 {[%emt 0:04:14]} 25. Qg4 {[%emt 0:00:00]} Qb5 {[%emt 0:08:06]} 26. h4 {[%emt 0:04:30]} Qb1+ {[%emt 0:01:41]} 27. Kh2 {[%emt 0:00:00]} Qf5 {[%emt 0:01:57]} 28. Qxf5 {[%emt 0:00:00]} exf5 {[%emt 0:00:08]} 29. Bxc4 {[%emt 0:00:00]} Rxh4+ {[%emt 0:00:09]} 30. Nh3 {[%emt 0:02:00]} Nxc4 {[%emt 0:00:11]} 31. f4 {[%emt 0:00:00]} Ne3 {[%emt 0:02:47]} 0-1